bitfinex/quotes_SOLUSD_20250731
["timestamp","ask_amount","ask_price","bid_price","bid_amount"]
[1753993132601,0.71351104,175.19,175.17,26.0]
[1753993132984,0.66,175.18,175.15,26.0]
[1753993133278,11.05401725,175.16,175.11,11.05401725]
[1753993133478,1.37359251,175.17,175.08,56.25873622]
[1753993133479,0.66,175.15,175.12,11.05401725]
[1753993133676,0.66,175.15,175.14,26.0]
[1753993134603,1.37359251,175.17,175.14,31.70971793]
[1753993134809,0.1,175.2,175.17,26.0]
[1753993135021,0.1,175.25,175.24,42.78468397]
[1753993135217,0.1,175.25,175.24,53.83870122]
[1753993136015,0.1,175.25,175.24,59.54516093]
[1753993136203,0.1,175.25,175.24,59.89516093]
[1753993136519,0.1,175.25,175.24,60.4658069]
[1753993136520,1e-08,175.25,175.24,60.4658069]
[1753993136890,1e-08,175.25,175.24,64.97885756]
[1753993139291,0.03,175.28,175.27,42.78468397]
[1753993139489,0.03,175.28,175.27,100.86230017]
[1753993139695,1e-08,175.28,175.27,101.21230017]
[1753993140204,1e-08,175.28,175.27,106.56778313]
[1753993140594,1e-08,175.28,175.27,64.62778313]
[1753993140798,1e-08,175.28,175.27,49.06071522]
[1753993140992,1e-08,175.28,175.27,64.62778313]
[1753993141799,1e-08,175.28,175.27,74.07778313]
[1753993142009,0.1,175.31,175.3,58.35175188]
[1753993142201,0.1,175.31,175.3,115.66670909]
[1753993142403,0.1,175.31,175.3,73.15625844]
[1753993142831,0.1,175.31,175.3,67.45175188]
[1753993143033,0.76,175.31,175.3,67.45175188]
[1753993143209,0.76,175.31,175.3,73.15625844]
[1753993143403,0.1,175.31,175.3,73.15625844]
[1753993143606,0.76,175.31,175.3,73.15625844]
[1753993143825,0.1,175.31,175.3,73.15625844]
[1753993144506,0.79,175.31,175.3,51.88468397]
[1753993144898,0.1,175.31,175.3,67.45175188]
[1753993145211,0.1,175.31,175.3,73.15625844]
[1753993146728,0.79,175.31,175.3,67.45175188]
[1753993148002,0.1,175.31,175.3,73.15625844]
[1753993148198,0.1,175.31,175.3,64.05625844]
[1753993148423,0.1,175.31,175.3,64.62670909]
[1753993148614,0.1,175.31,175.3,64.97670909]
[1753993148917,0.1,175.31,175.3,69.65714061]
[1753993149520,0.1,175.38,175.35,16.78468397]
[1753993149826,0.79,175.38,175.37,41.56706791]
[1753993150527,0.1,175.38,175.37,47.26929748]
[1753993150710,0.1,175.38,175.37,64.05398145]
[1753993151324,0.1,175.38,175.37,64.6242044]
[1753993151627,0.1,175.38,175.37,64.05398145]
[1753993154403,0.1,175.38,175.37,105.93398145]
[1753993154596,0.1,175.38,175.37,106.5042044]
[1753993155326,0.1,175.38,175.37,106.8542044]
[1753993156202,0.79,175.38,175.37,48.48691354]
[1753993156524,0.79,175.38,175.37,105.93398145]
[1753993156824,0.1,175.38,175.37,101.39017748]
[1753993157030,0.1,175.38,175.37,101.96040043]
[1753993157327,0.1,175.38,175.37,90.93713649]
[1753993157621,0.1,175.38,175.37,101.96040043]
[1753993158607,0.79,175.38,175.37,101.96040043]
[1753993158815,0.79,175.38,175.37,59.51017748]
[1753993159121,0.79,175.38,175.35,16.72583685]
[1753993159321,0.69,175.37,175.36,16.78468397]
[1753993159528,0.69,175.37,175.31,22.48886513]
[1753993159735,0.69,175.37,175.36,26.0]
[1753993160617,0.1,175.38,175.36,37.02326394]
[1753993160933,0.1,175.38,175.37,17.35490692]
[1753993161166,0.1,175.38,175.37,28.37817086]
[1753993161320,0.1,175.38,175.37,28.72817086]
[1753993161634,41.86,175.48,175.44,26.0]
[1753993161635,0.69,175.46,175.44,26.0]
[1753993161817,0.69,175.46,175.45,11.02326394]
[1753993162126,42.57233188,175.48,175.45,11.02326394]
[1753993162435,0.69,175.47,175.45,11.02326394]
[1753993162635,41.86,175.48,175.45,11.02326394]
[1753993162636,0.69,175.46,175.45,11.02326394]
[1753993162832,0.69,175.46,175.44,26.0]
[1753993163032,41.86,175.48,175.44,26.0]
[1753993163033,0.69,175.45,175.44,42.72317202]
[1753993163331,41.86,175.48,175.44,37.02326394]
[1753993163541,0.69,175.45,175.44,26.0]
[1753993163716,0.69,175.45,175.44,37.02326394]
[1753993164231,0.69,175.45,175.44,42.72321834]
[1753993164810,0.69,175.47,175.44,42.72321834]
[1753993165012,0.71229129,175.49,175.44,42.72321834]
[1753993165013,0.69,175.49,175.47,42.78468397]
[1753993165212,0.69,175.49,175.48,11.02326394]
[1753993165751,0.69,175.51,175.48,11.02326394]
[1753993165932,41.81212898,175.53,175.49,11.02326394]
[1753993166250,0.69,175.5,175.49,11.02326394]
[1753993166426,0.69,175.52,175.49,11.02326394]
[1753993166742,0.72,175.51,175.5,26.0]
[1753993167560,0.03,175.51,175.5,37.02326394]
[1753993168346,0.03,175.51,175.5,54.37774847]
[1753993168674,0.03,175.51,175.5,60.42575416]
[1753993169165,0.69,175.69,175.58,26.0]
[1753993169449,4.69730812,175.74,175.62,26.0]
[1753993169450,11.02326394,175.64,175.62,26.0]
[1753993169753,11.71326394,175.63,175.59,26.0]
[1753993169951,11.02326394,175.6,175.59,26.0]
[1753993170139,0.69,175.6,175.59,26.0]
[1753993170338,0.69,175.6,175.57,26.0]
[1753993170544,41.82,175.66,175.57,37.02326394]
[1753993170746,0.69,175.59,175.57,37.02326394]
[1753993170957,0.69,175.63,175.58,16.78468397]
[1753993171131,41.42002836,175.74,175.58,16.78468397]
[1753993171132,0.69,175.62,175.58,16.78468397]
[1753993171331,0.69,175.64,175.63,26.0]
[1753993171534,0.69,175.67,175.63,26.0]
[1753993171755,41.82,175.69,175.66,11.02326394]
[1753993171756,42.51,175.69,175.66,11.02326394]
[1753993171943,0.69,175.68,175.67,11.02326394]
[1753993172141,0.69,175.68,175.66,11.02326394]
[1753993172472,0.69,175.67,175.66,11.02326394]
[1753993172859,0.69,175.69,175.66,11.02326394]
[1753993173055,47.4908825,175.72,175.68,11.02326394]
[1753993173250,0.69,175.69,175.68,11.02326394]
[1753993174170,0.69,175.69,175.67,11.02326394]
[1753993174380,0.66,175.71,175.68,11.02326394]
[1753993174554,10.0,175.81,175.66,26.0]
[1753993174555,0.66,175.75,175.69,26.0]
[1753993174871,0.66,175.75,175.65,6.01304937]
[1753993174872,0.66,175.73,175.71,11.02326394]
[1753993175043,0.66,175.72,175.71,11.02326394]
[1753993175244,0.66,175.72,175.7,11.02326394]
[1753993175474,0.66,175.71,175.7,11.02326394]
[1753993175678,0.66,175.71,175.69,26.0]
[1753993175974,0.66,175.71,175.66,11.02326394]
[1753993175975,0.66,175.7,175.66,11.02326394]
[1753993176202,19.91351842,175.76,175.6,0.32]
[1753993176203,0.66,175.69,175.67,26.0]
[1753993176467,5.68957669,175.76,175.69,16.78468397]
[1753993176670,14.22060239,175.81,175.74,11.02326394]
[1753993176970,42.46,175.8,175.72,26.0]
[1753993177148,0.66,175.79,175.72,26.0]
[1753993177344,11.68326394,175.79,175.74,11.02326394]
[1753993177555,0.66,175.78,175.74,11.02326394]
[1753993177748,0.66,175.78,175.73,11.02326394]
[1753993177954,11.02326394,175.77,175.72,37.02326394]
[1753993178172,0.66,175.76,175.72,37.02326394]
[1753993178364,0.66,175.76,175.73,11.02326394]
[1753993178550,0.66,175.75,175.73,11.02326394]
[1753993179358,0.66,175.78,175.74,11.02326394]
[1753993179562,0.66,175.78,175.75,11.02326394]
[1753993179989,0.66,175.77,175.75,11.02326394]
[1753993181177,0.66,175.76,175.74,11.02326394]
[1753993181579,0.66,175.76,175.75,11.02326394]
[1753993181885,6.34864152,175.79,175.72,32.01077178]
[1753993182087,6.34864152,175.79,175.75,11.02326394]
[1753993182396,0.03,175.77,175.75,11.02326394]
[1753993182592,0.69,175.77,175.75,11.02326394]
[1753993182998,0.03,175.77,175.75,11.02326394]
[1753993183201,0.03,175.77,175.76,28.69690557]
[1753993184289,42.42,175.85,175.8,42.78468397]
[1753993184495,41.76,175.85,175.84,11.02326394]
[1753993184670,42.42,175.85,175.83,37.02326394]
[1753993184872,42.42,175.85,175.84,26.0]
[1753993185093,42.42,175.85,175.84,37.02326394]
[1753993185266,42.42,175.85,175.84,26.0]
[1753993185464,42.42,175.85,175.84,37.02326394]
[1753993185692,0.66,175.88,175.84,37.02326394]
[1753993185866,41.76,175.94,175.82,6.25629016]
[1753993185867,16.70828541,175.91,175.85,26.0]
[1753993186070,0.66,175.88,175.86,11.02326394]
[1753993186283,0.66,175.88,175.85,26.0]
[1753993186481,0.66,175.88,175.86,11.02326394]
[1753993186879,0.66,175.88,175.86,37.02326394]
[1753993187072,0.66,175.88,175.87,11.02326394]
[1753993187304,0.66,175.9,175.87,11.02326394]
[1753993187468,0.66,175.9,175.86,26.0]
[1753993187469,6.34437597,175.93,175.89,11.02326394]
[1753993187675,0.66,175.92,175.86,26.0]
[1753993187874,11.02326394,175.91,175.86,26.0]
[1753993188095,0.66,175.9,175.87,11.02326394]
[1753993188298,0.66,175.89,175.87,11.02326394]
[1753993188873,11.02326394,175.92,175.82,20.5758379]
[1753993189197,0.66,175.91,175.88,11.02326394]
[1753993189600,5.68441605,175.92,175.88,11.02326394]
[1753993189802,0.66,175.9,175.86,26.0]
[1753993189987,0.66,175.9,175.8,42.30882821]
[1753993189988,11.02326394,175.89,175.85,11.02326394]
[1753993190293,11.68326394,175.88,175.79,16.78468397]
[1753993190596,11.68326394,175.88,175.84,26.0]
[1753993190597,0.66,175.87,175.84,26.0]
[1753993190775,5.68666477,175.85,175.79,16.78468397]
[1753993190970,11.02326394,175.83,175.75,16.78468397]
[1753993191212,0.66,175.83,175.79,11.02326394]
[1753993191389,0.66,175.83,175.81,11.02326394]
[1753993191580,0.66,175.83,175.8,11.02326394]
[1753993191897,11.02326394,175.81,175.75,22.47458439]
[1753993192088,42.4,175.82,175.8,26.0]
[1753993192292,41.74,175.82,175.8,37.02326394]
[1753993192597,41.74,175.82,175.75,22.79458439]
[1753993192598,41.74,175.82,175.81,11.02326394]
[1753993192808,41.74,175.82,175.77,0.32]
[1753993193097,41.74,175.82,175.79,37.02326394]
[1753993193474,41.74,175.82,175.81,26.0]
[1753993193692,41.74,175.82,175.81,37.02326394]
[1753993193908,41.74,175.82,175.81,26.0]
[1753993194195,41.72,175.86,175.8,26.0]
[1753993194403,41.72,175.86,175.83,11.02326394]
[1753993194698,41.72,175.86,175.82,11.02326394]
[1753993194870,41.72,175.86,175.83,11.02326394]
[1753993195075,11.68326394,175.85,175.8,26.0]
[1753993195275,47.40635258,175.86,175.79,11.02326394]
[1753993195276,0.66,175.84,175.79,11.02326394]
[1753993195585,0.66,175.84,175.8,26.0]
[1753993195586,0.66,175.83,175.8,26.0]
[1753993195784,0.66,175.82,175.8,26.0]
[1753993196105,11.02326394,175.84,175.81,26.0]
[1753993196403,0.66,175.84,175.81,37.02326394]
[1753993197506,59.08961502,175.86,175.81,37.02326394]
[1753993197810,0.66,175.84,175.81,26.0]
[1753993197996,0.66,175.84,175.81,37.02326394]
[1753993198306,0.66,175.84,175.81,31.68791431]
[1753993198499,42.38,175.86,175.82,11.02326394]
[1753993198800,0.66,175.85,175.82,11.02326394]
[1753993199104,0.66,175.84,175.81,26.0]
[1753993199302,11.02326394,175.82,175.81,26.0]
[1753993199516,11.68326394,175.82,175.81,26.0]
[1753993199716,5.68677178,175.85,175.81,26.0]
[1753993200009,0.66,175.84,175.8,5.68823875]
[1753993200318,11.68326394,175.83,175.78,42.7121513]
[1753993200481,11.68326394,175.83,175.81,26.0]
[1753993200676,11.68326394,175.85,175.81,26.0]
[1753993200902,0.66,175.85,175.82,11.02326394]
[1753993201409,41.72,175.86,175.81,26.0]
[1753993201622,11.68326394,175.85,175.82,26.0]
[1753993201793,11.02326394,175.83,175.81,26.0]
[1753993202200,0.66,175.82,175.81,26.0]
[1753993202389,0.66,175.83,175.81,26.0]
[1753993202584,11.02326394,175.82,175.75,8.53411042]
[1753993202786,0.66,175.83,175.75,8.53411042]
[1753993202787,41.72,175.81,175.79,11.02326394]
[1753993203113,16.78468397,175.91,175.79,11.02326394]
[1753993203114,0.66,175.85,175.8,11.02326394]
[1753993203292,38.41791601,175.95,175.8,11.02326394]
[1753993203293,41.72,175.86,175.84,11.02326394]
[1753993203483,42.38,175.86,175.84,11.02326394]
[1753993203687,41.72,175.86,175.84,11.02326394]
[1753993204389,41.72,175.86,175.85,11.02326394]
[1753993204583,41.72,175.86,175.84,11.02326394]
[1753993205120,41.72,175.86,175.84,16.71020633]
[1753993206107,41.72,175.86,175.85,11.02326394]
[1753993206405,41.72,175.86,175.85,16.70992871]
[1753993206608,41.72,175.86,175.82,5.68763508]
[1753993206813,41.72,175.86,175.84,11.02326394]
[1753993207485,0.66,175.88,175.85,11.02326394]
[1753993207686,0.69,175.91,175.85,0.32]
[1753993207986,41.7,175.9,175.88,11.02326394]
[1753993208189,11.71326394,175.89,175.8,0.88882821]
[1753993208388,0.69,175.88,175.84,26.0]
[1753993208609,0.69,175.87,175.84,26.0]
[1753993208821,11.02326394,175.85,175.8,5.68820115]
[1753993209026,41.7,175.86,175.8,5.68820115]
[1753993209314,41.7,175.86,175.82,11.02326394]
[1753993209618,42.39,175.86,175.82,11.02326394]
[1753993209990,53.41326394,175.86,175.82,11.02326394]
[1753993210312,0.69,175.85,175.82,11.02326394]
[1753993211415,41.7,175.86,175.82,11.02326394]
[1753993211925,41.7,175.86,175.85,11.02326394]
[1753993212218,41.7,175.86,175.85,16.70992871]
[1753993212525,41.7,175.86,175.84,16.71020229]
[1753993212816,42.39,175.86,175.83,5.68726235]
[1753993212983,11.71326394,175.85,175.81,26.0]
[1753993213184,0.69,175.84,175.81,31.68788745]
[1753993213910,0.69,175.83,175.81,26.0]
[1753993214084,53.41326394,175.82,175.77,0.06]
[1753993214284,11.02326394,175.8,175.77,0.06]
[1753993214511,11.71326394,175.81,175.77,0.06]
[1753993214815,0.69,175.81,175.77,11.08326394]
[1753993215108,0.69,175.81,175.77,37.08326394]
[1753993215316,0.69,175.8,175.77,0.06]
[1753993215610,11.02326394,175.78,175.77,0.06]
[1753993216113,53.41326394,175.78,175.77,0.06]
[1753993216333,57.19879293,175.78,175.77,0.06]
[1753993216488,53.41326394,175.78,175.77,0.06]
[1753993216688,41.7,175.78,175.77,0.06]
[1753993217006,11.02326394,175.79,175.77,0.06]
[1753993217313,0.69,175.78,175.77,0.06]
[1753993217710,11.02326394,175.8,175.77,0.06]
[1753993217915,42.39,175.81,175.77,0.06]
[1753993218093,0.69,175.8,175.77,0.06]
[1753993219299,11.71326394,175.8,175.77,0.06]
[1753993219498,0.69,175.8,175.77,0.06]
[1753993220005,0.69,175.86,175.79,37.02326394]
[1753993220208,3.7929573,175.85,175.83,11.02326394]
[1753993220411,3.7929573,175.85,175.81,11.02326394]
[1753993220412,0.69,175.84,175.81,11.02326394]
[1753993220628,0.69,175.84,175.81,16.71092946]
[1753993220947,14.81622124,175.85,175.79,31.68832499]
[1753993221113,0.69,175.83,175.79,26.0]
[1753993221433,11.71326394,175.83,175.79,26.0]
[1753993221633,5.6867502,175.85,175.79,26.0]
[1753993221803,11.71326394,175.82,175.78,11.02326394]
[1753993222003,11.71326394,175.81,175.77,11.08326394]
[1753993222329,52.72326394,175.82,175.77,16.7724648]
[1753993222522,11.02326394,175.78,175.77,0.06]
[1753993222833,58.43219328,175.78,175.77,0.06]
[1753993223140,51.89584048,175.78,175.77,0.06]
[1753993223320,59.12219328,175.78,175.77,0.06]
[1753993223716,62.92037622,175.78,175.77,0.06]
[1753993225317,62.9214315,175.78,175.77,0.06]
[1753993225923,73.94469544,175.78,175.77,0.06]
[1753993227100,73.97469544,175.78,175.77,0.06]
[1753993227427,51.92816756,175.78,175.77,0.06]
[1753993227727,62.9514315,175.78,175.77,0.06]
[1753993227942,73.97469544,175.78,175.77,0.06]
[1753993228149,59.15219328,175.78,175.77,0.06]
[1753993228334,48.12892934,175.78,175.77,0.06]
[1753993228512,59.15219328,175.78,175.77,0.06]
[1753993229638,70.17545722,175.78,175.77,0.06]
[1753993230816,73.97666025,175.78,175.77,0.06]
[1753993231218,70.17545722,175.78,175.77,0.06]
[1753993231416,73.9757678,175.78,175.77,0.06]
[1753993231912,11.02326394,175.76,175.63,9.42]
[1753993232236,11.02326394,175.67,175.63,9.1]
[1753993232430,41.72,175.68,175.63,0.32]
[1753993232605,164.38468397,175.77,175.64,0.32]
[1753993232806,43.93315369,175.78,175.67,11.02326394]
[1753993232807,0.69,175.74,175.67,11.02326394]
[1753993233016,11.71326394,175.77,175.72,11.02326394]
[1753993233222,41.72,175.76,175.74,11.02326394]
[1753993233450,41.72,175.76,175.74,11.34326394]
[1753993233605,41.72,175.76,175.74,11.02326394]
[1753993233811,41.72,175.76,175.73,16.71373866]
[1753993234138,42.41,175.76,175.72,11.02326394]
[1753993234450,41.72,175.76,175.72,11.02326394]
[1753993234605,11.69326394,175.75,175.71,26.0]
[1753993234809,15.5037792,175.72,175.65,6.01313976]
[1753993235014,15.5037792,175.69,175.65,5.69313976]
[1753993235214,41.72,175.71,175.66,0.32]
[1753993235215,57.2237792,175.71,175.66,0.32]
[1753993235530,57.2237792,175.71,175.67,0.32]
[1753993236041,41.72,175.71,175.67,21.51606243]
[1753993236272,41.72,175.71,175.68,15.8237792]
[1753993236423,41.72,175.71,175.68,0.32]
[1753993236822,41.72,175.71,175.67,21.19606243]
[1753993237740,57.2237792,175.71,175.66,6.01270975]
[1753993238045,15.5037792,175.69,175.65,41.5037792]
[1753993238339,57.2237792,175.68,175.63,9.42]
[1753993238536,15.5037792,175.67,175.66,26.0]
[1753993238741,15.5037792,175.67,175.63,14.79357502]
[1753993238944,15.5037792,175.66,175.64,26.0]
[1753993239324,41.72,175.65,175.64,26.0]
[1753993239846,57.2237792,175.65,175.63,26.0]
[1753993240847,41.72,175.65,175.61,5.69433484]
[1753993241050,57.2237792,175.65,175.61,5.69433484]
[1753993241264,57.2237792,175.65,175.61,31.69433484]
[1753993242072,15.5037792,175.64,175.59,15.7037792]
[1753993242271,41.72,175.65,175.59,0.2]
[1753993242272,15.5037792,175.63,175.59,0.2]
[1753993242451,41.72,175.62,175.59,0.2]
[1753993242767,41.72,175.62,175.59,5.89488157]
[1753993243275,0.67,175.69,175.62,26.0]
[1753993243450,57.2237792,175.68,175.63,15.5037792]
[1753993243655,57.2237792,175.68,175.62,26.0]
[1753993243656,16.1737792,175.67,175.62,26.0]
[1753993243959,15.5037792,175.65,175.62,26.0]
[1753993244166,41.72,175.64,175.62,26.0]
[1753993244844,41.72,175.64,175.62,31.69401731]
[1753993245369,41.72,175.66,175.63,15.8237792]
[1753993245671,41.72,175.66,175.65,15.5037792]
[1753993245853,41.72,175.66,175.64,15.5037792]
[1753993246052,41.72,175.66,175.63,15.5037792]
[1753993246251,41.72,175.66,175.65,15.5037792]
[1753993246747,41.72,175.66,175.65,21.19691896]
[1753993247058,41.72,175.69,175.68,26.0]
[1753993247267,41.72,175.71,175.68,41.8237792]
[1753993247451,41.72,175.73,175.7,15.5037792]
[1753993247659,41.72,175.73,175.72,15.5037792]
[1753993248850,41.72,175.76,175.73,5.69054799]
[1753993249251,41.72,175.76,175.74,15.5037792]
[1753993249665,41.72,175.76,175.73,5.69054799]
[1753993249867,0.67,175.75,175.73,15.5037792]
[1753993250269,41.72,175.76,175.74,15.5037792]
[1753993250465,0.67,175.75,175.72,5.69080504]
[1753993250667,0.67,175.75,175.73,15.5037792]
[1753993250858,0.67,175.74,175.7,15.5037792]
[1753993251061,57.8937792,175.73,175.69,5.69184358]
[1753993251291,41.72,175.73,175.72,15.5037792]
[1753993251458,41.72,175.73,175.72,0.06]
[1753993251658,42.39,175.73,175.72,0.06]
[1753993252058,57.8937792,175.73,175.72,0.06]
[1753993252280,57.8937792,175.73,175.66,5.69271074]
[1753993252453,15.5037792,175.69,175.66,5.69271074]
[1753993252655,41.72,175.68,175.65,5.69308707]
[1753993252968,41.72,175.68,175.65,21.19686627]
[1753993252969,42.39,175.68,175.65,21.19686627]
[1753993253480,41.72,175.68,175.65,21.19686627]
[1753993253891,41.72,175.68,175.66,15.5037792]
[1753993254057,41.72,175.68,175.65,21.19686627]
[1753993254457,41.72,175.68,175.66,0.38]
[1753993254674,41.72,175.68,175.67,15.5037792]
[1753993254986,41.72,175.68,175.67,21.1962708]
[1753993255165,41.72,175.71,175.67,47.1962708]
[1753993255573,41.72,175.71,175.69,15.5037792]
[1753993255768,0.67,175.7,175.67,31.6924916]
[1753993256088,0.67,175.69,175.67,26.0]
[1753993256981,0.67,175.69,175.67,31.69244183]
[1753993257667,15.5037792,175.69,175.65,21.19662623]
[1753993257869,42.39,175.68,175.65,5.69284703]
[1753993258377,0.67,175.67,175.59,14.81741439]
[1753993258611,15.5037792,175.66,175.61,15.5037792]
[1753993258773,41.72,175.65,175.64,26.0]
[1753993259269,41.72,175.65,175.64,31.6934639]
[1753993259584,42.39,175.65,175.62,5.69411228]
[1753993259981,0.67,175.64,175.63,26.0]
[1753993260179,11.66541751,175.64,175.6,31.6945548]
[1753993260392,0.67,175.63,175.6,5.6945548]
[1753993260608,41.72,175.65,175.6,26.0]
[1753993260897,10.99541751,175.61,175.59,0.2]
[1753993261086,10.99541751,175.6,175.59,0.2]
[1753993261292,11.66541751,175.6,175.59,0.2]
[1753993261705,0.67,175.6,175.59,0.2]
[1753993261893,17.36017833,175.6,175.59,0.2]
[1753993262913,11.66541751,175.6,175.59,0.2]
[1753993263080,42.39,175.6,175.59,0.2]
[1753993263395,53.38541751,175.6,175.59,0.2]
[1753993264207,42.39,175.6,175.59,0.2]
[1753993264406,41.72,175.6,175.59,0.2]
[1753993264783,0.69,175.62,175.59,15.71841986]
[1753993265107,41.72,175.6,175.59,5.89508514]
[1753993265287,41.72,175.6,175.59,21.413505]
[1753993265887,57.92841986,175.6,175.59,0.2]
[1753993266410,41.72,175.6,175.59,0.2]
[1753993267788,57.92841986,175.6,175.59,0.2]
[1753993267997,42.41,175.6,175.59,0.2]
[1753993268186,57.92841986,175.6,175.59,0.2]
[1753993268387,42.41,175.6,175.59,0.2]
[1753993269603,41.72,175.6,175.59,0.2]
[1753993269790,41.72,175.6,175.59,15.71841986]
[1753993270382,41.72,175.6,175.59,21.413505]
[1753993270910,41.72,175.6,175.59,15.71841986]
[1753993271282,41.72,175.6,175.59,21.413505]
[1753993271705,41.72,175.62,175.59,21.413505]
[1753993271895,41.72,175.62,175.6,15.51841986]
[1753993272916,0.69,175.61,175.6,26.0]
[1753993273319,41.72,175.62,175.6,26.0]
[1753993273518,42.41,175.62,175.59,15.71841986]
[1753993273893,41.72,175.62,175.59,15.71841986]
[1753993274198,0.69,175.61,175.59,15.71841986]
[1753993274404,41.72,175.62,175.59,15.71841986]
[1753993274706,42.41,175.62,175.59,15.71841986]
[1753993274908,42.41,175.62,175.6,15.51841986]
[1753993275112,42.41,175.62,175.59,15.71841986]
[1753993275431,42.41,175.62,175.59,21.41346032]
[1753993275624,42.41,175.62,175.59,15.71841986]
[1753993275939,42.41,175.62,175.59,21.41348433]
[1753993276100,41.72,175.62,175.59,21.41348433]
[1753993276297,41.72,175.62,175.61,15.51841986]
[1753993277421,5.69239821,175.68,175.61,64.37754036]
[1753993277422,0.69,175.68,175.61,64.37754036]
[1753993277627,41.72,175.67,175.65,15.51841986]
[1753993277936,41.72,175.67,175.63,26.0]
[1753993278111,0.69,175.66,175.63,26.0]
[1753993278311,0.69,175.66,175.64,15.51841986]
[1753993278519,0.69,175.66,175.63,26.0]
[1753993278718,15.51841986,175.64,175.6,9.1]
[1753993278905,42.41,175.63,175.6,26.0]
[1753993279327,41.72,175.63,175.6,41.51841986]
[1753993279520,41.72,175.63,175.6,47.21314345]
[1753993279737,0.69,175.62,175.6,26.0]
[1753993280029,15.51841986,175.61,175.59,0.2]
[1753993280326,57.92841986,175.6,175.59,0.2]
[1753993281125,6.38386677,175.63,175.59,0.2]
[1753993281353,57.92841986,175.62,175.59,0.2]
[1753993281722,16.20841986,175.61,175.59,0.2]
[1753993281920,0.69,175.61,175.59,0.2]
[1753993282732,15.51841986,175.61,175.59,0.2]
[1753993282942,0.69,175.6,175.59,0.2]
[1753993283235,16.20841986,175.6,175.59,0.2]
[1753993284442,21.90318068,175.6,175.59,0.2]
[1753993284613,16.20841986,175.6,175.59,0.2]
[1753993284812,11.69345869,175.6,175.59,0.2]
[1753993285137,0.69,175.64,175.59,16.89854383]
[1753993285338,41.72,175.62,175.61,11.00345869]
[1753993286716,41.72,175.62,175.61,5.69443653]
[1753993286918,41.72,175.62,175.61,16.69789522]
[1753993288415,41.72,175.62,175.61,59.86257919]
[1753993288744,41.72,175.66,175.64,26.0]
[1753993289054,0.69,175.65,175.64,37.00345869]
[1753993289224,0.69,175.65,175.64,26.0]
[1753993289419,11.69345869,175.65,175.61,9.1]
[1753993289628,0.69,175.64,175.61,9.1]
[1753993289833,42.41,175.63,175.61,9.1]
[1753993290235,41.72,175.63,175.6,26.0]
[1753993290433,0.69,175.62,175.6,26.0]
[1753993291631,17.38793501,175.61,175.59,0.2]
[1753993291950,41.7,175.6,175.59,0.2]
[1753993292321,42.39,175.6,175.59,0.2]
[1753993292523,53.39345869,175.6,175.59,0.2]
[1753993293656,59.08821951,175.6,175.59,0.2]
[1753993293828,53.39345869,175.6,175.59,0.2]
[1753993294442,41.7,175.6,175.59,0.2]
[1753993295356,41.7,175.6,175.59,16.89847435]
[1753993295524,0.67,175.67,175.6,16.78468397]
[1753993295728,41.7,175.66,175.63,11.00345869]
[1753993295940,41.7,175.66,175.61,26.38]
[1753993296142,41.7,175.66,175.64,11.00345869]
[1753993296450,42.37,175.66,175.63,11.00345869]
[1753993297726,42.37,175.66,175.63,16.69724144]
[1753993297931,41.7,175.66,175.63,16.69724144]